bitfinex/quotes_SOLUSD_20250908
["timestamp","ask_amount","ask_price","bid_price","bid_amount"]
[1757333152303,20.0,214.51,214.5,26.0]
[1757333152497,20.0,214.51,214.5,62.86]
[1757333154797,20.0,214.51,214.49,0.03]
[1757333155010,20.68,214.51,214.5,36.86]
[1757333155219,20.68,214.51,214.5,62.86]
[1757333155220,25.34178732,214.51,214.5,62.86]
[1757333155421,38.93738133,214.51,214.49,0.03]
[1757333155607,38.93738133,214.51,214.5,36.86]
[1757333156006,38.93738133,214.51,214.49,0.03]
[1757333156210,38.25738133,214.51,214.49,0.03]
[1757333156421,0.68,214.5,214.49,0.03]
[1757333156623,5.34200466,214.5,214.49,0.03]
[1757333159520,18.93759867,214.5,214.49,0.03]
[1757333163416,21.41786672,214.5,214.49,0.03]
[1757333164011,20.0,214.47,214.46,36.45]
[1757333164212,20.68,214.47,214.46,36.45]
[1757333164417,79.6,214.46,214.45,62.84]
[1757333164623,80.28,214.46,214.45,26.0]
[1757333166124,84.94287419,214.46,214.45,26.0]
[1757333166307,84.26287419,214.46,214.45,26.0]
[1757333166931,84.98287419,214.46,214.45,26.0]
[1757333167926,84.98287419,214.46,214.45,62.84]
[1757333168526,84.26287419,214.46,214.45,62.84]
[1757333168720,84.98287419,214.46,214.45,62.84]
[1757333173234,84.26287419,214.46,214.45,62.84]
[1757333176049,4.66287419,214.46,214.45,62.84]
[1757333176343,4.66287419,214.46,214.45,62.87]
[1757333178535,20.0,214.49,214.45,67.57305217]
[1757333178736,20.0,214.47,214.46,26.0]
[1757333179037,20.72,214.47,214.46,62.84]
[1757333179338,20.0,214.47,214.46,62.84]
[1757333180444,24.66265678,214.47,214.46,62.84]
[1757333181942,25.38265678,214.47,214.46,62.84]
[1757333182160,24.66265678,214.47,214.46,62.84]
[1757333182744,20.0,214.47,214.46,62.84]
[1757333182942,24.66265678,214.47,214.46,62.84]
[1757333185827,25.38265678,214.47,214.46,62.84]
[1757333186339,25.38265678,214.47,214.46,26.0]
[1757333186545,25.38265678,214.47,214.46,62.84]
[1757333186925,25.38265678,214.47,214.46,26.0]
[1757333187131,25.38265678,214.47,214.45,0.03]
[1757333187331,25.38265678,214.47,214.46,25.96]
[1757333187530,25.38265678,214.47,214.45,26.03]
[1757333187732,24.66265678,214.47,214.46,36.82]
[1757333188334,25.38265678,214.47,214.46,36.82]
[1757333191240,25.38265678,214.47,214.45,26.03]
[1757333191443,24.66265678,214.47,214.46,36.82]
[1757333192144,25.38265678,214.47,214.46,36.82]
[1757333192329,25.38265678,214.47,214.45,26.03]
[1757333192534,24.66265678,214.47,214.46,36.82]
[1757333192940,24.66265678,214.47,214.45,26.03]
[1757333193234,24.66265678,214.47,214.46,36.82]
[1757333193751,25.38265678,214.47,214.46,36.82]
[1757333193944,25.38265678,214.47,214.45,26.03]
[1757333194158,0.72,214.46,214.45,26.03]
[1757333194345,0.72,214.46,214.45,62.85]
[1757333195834,0.72,214.46,214.45,26.03]
[1757333196038,18.9784682,214.46,214.45,0.03]
[1757333196265,22.85394181,214.46,214.45,0.03]
[1757333198342,18.9784682,214.46,214.45,0.03]
[1757333205260,22.85394181,214.46,214.45,0.03]
[1757333205461,37.47106762,214.45,214.44,1e-08]
[1757333205647,37.47106762,214.45,214.43,0.2]
[1757333205648,13.59559401,214.44,214.43,1e-08]
[1757333205839,18.13106762,214.44,214.43,1e-08]
[1757333207362,22.7943767,214.44,214.43,1e-08]
[1757333212052,22.7943767,214.44,214.42,0.03]
[1757333212053,34.45264941,214.44,214.41,1e-08]
[1757333212256,37.47106762,214.42,214.41,1e-08]
[1757333212763,38.13106762,214.42,214.41,1e-08]
[1757333213870,42.79481167,214.42,214.41,1e-08]
[1757333215161,79.59481167,214.42,214.41,1e-08]
[1757333215547,81.46235608,214.42,214.41,1e-08]
[1757333216956,116.44043647,214.42,214.33,0.03]
[1757333217162,20.0,214.34,214.33,0.03]
[1757333217362,33.59559401,214.34,214.33,0.03]
[1757333217550,38.13106762,214.34,214.33,0.03]
[1757333217856,33.59559401,214.31,214.25,78.77276483]
[1757333218056,20.0,214.26,214.25,78.77276483]
[1757333218667,20.0,214.26,214.25,78.81276483]
[1757333220964,24.66722673,214.26,214.25,115.61276483]
[1757333221164,24.66722673,214.26,214.25,78.81276483]
[1757333221465,24.66722673,214.26,214.25,115.57276483]
[1757333222168,24.66722673,214.26,214.25,78.77276483]
[1757333224571,24.66722673,214.26,214.25,115.57276483]
[1757333224768,24.66722673,214.26,214.25,78.77276483]
[1757333225159,24.66722673,214.26,214.25,115.57276483]
[1757333225759,25.32722673,214.26,214.25,115.57276483]
[1757333226171,24.66722673,214.26,214.25,115.57276483]
[1757333231377,24.66722673,214.26,214.25,115.60276483]
[1757333232370,25.32722673,214.26,214.25,115.60276483]
[1757333232575,25.32722673,214.26,214.25,78.80276483]
[1757333234182,20.0,214.22,214.21,36.8]
[1757333236381,24.66809821,214.22,214.17,26.0]
[1757333236683,24.66809821,214.22,214.21,26.0]
[1757333236878,24.66809821,214.22,214.18,36.8]
[1757333236879,24.66809821,214.22,214.2,36.78]
[1757333238974,24.66809821,214.22,214.2,36.8]
[1757333239978,20.0,214.16,214.09,15.06441402]
[1757333240283,16.33834375,214.22,214.13,26.0]
[1757333240284,20.0,214.18,214.13,26.0]
[1757333240467,20.0,214.18,214.17,26.0]
[1757333240669,20.0,214.21,214.17,62.78]
[1757333241064,20.0,214.25,214.18,4.66897002]
[1757333241594,20.0,214.26,214.18,16.34139508]
[1757333241794,13.65559401,214.3,214.18,4.66897002]
[1757333241795,20.0,214.24,214.18,4.66897002]
[1757333242789,20.0,214.24,214.22,26.0]
[1757333242982,20.0,214.24,214.22,62.78]
[1757333243579,20.0,214.24,214.18,4.66876762]
[1757333243781,20.0,214.24,214.22,26.0]
[1757333244286,20.0,214.21,214.19,36.78]
[1757333245086,20.0,214.21,214.17,26.0]
[1757333245290,20.66,214.21,214.17,62.78]
[1757333245586,20.0,214.21,214.17,62.78]
[1757333245772,24.66833591,214.21,214.17,62.78]
[1757333248675,20.0,214.21,214.17,62.78]
[1757333249174,20.0,214.21,214.2,26.0]
[1757333250007,20.0,214.21,214.19,36.78]
[1757333250595,24.66851107,214.21,214.14,4.66984215]
[1757333250778,20.0,214.19,214.16,26.0]
[1757333251287,24.66876089,214.19,214.14,4.66984215]
[1757333251497,20.0,214.19,214.18,26.0]
[1757333251797,20.0,214.19,214.18,36.78]
[1757333254004,79.66,214.22,214.18,36.78]
[1757333254005,0.06,214.22,214.21,26.0]
[1757333254188,0.06,214.22,214.21,62.78]
[1757333255083,0.06,214.22,214.21,36.78]
[1757333255278,0.72,214.22,214.19,36.78]
[1757333255487,0.72,214.22,214.21,26.0]
[1757333256191,5.38809821,214.22,214.21,26.0]
[1757333256395,20.0,214.21,214.16,4.66940605]
[1757333256595,20.68,214.21,214.2,26.0]
[1757333256801,20.68,214.21,214.12,23.54581289]
[1757333256988,20.0,214.19,214.13,36.76]
[1757333257301,20.0,214.19,214.13,4.67006024]
[1757333257603,20.0,214.19,214.14,36.76]
[1757333257604,24.66880625,214.19,214.14,36.76]
[1757333257790,25.34880625,214.19,214.17,26.0]
[1757333257997,25.34880625,214.19,214.17,62.76]
[1757333258327,0.68,214.18,214.17,36.76]
[1757333258497,0.68,214.18,214.12,16.54069344]
[1757333258800,0.68,214.18,214.16,26.0]
[1757333259011,0.68,214.18,214.16,62.76]
[1757333259591,5.34899419,214.18,214.16,62.76]
[1757333260687,0.68,214.18,214.16,62.76]
[1757333261298,20.68,214.17,214.16,36.76]
[1757333262405,25.34918802,214.17,214.16,36.76]
[1757333262809,20.68,214.17,214.16,36.76]
[1757333263129,25.34926264,214.17,214.16,36.76]
[1757333263710,20.68,214.17,214.16,36.76]
[1757333264299,25.34922387,214.17,214.16,36.76]
[1757333264498,25.34922387,214.17,214.16,26.0]
[1757333264708,20.68,214.17,214.16,62.76]
[1757333265204,20.68,214.17,214.16,26.0]
[1757333265402,20.68,214.17,214.16,62.76]
[1757333265628,25.34918802,214.17,214.16,62.76]
[1757333266110,20.68,214.17,214.16,26.0]
[1757333266809,79.6,214.19,214.18,26.0]
[1757333267013,79.6,214.19,214.18,62.76]
[1757333267899,20.0,214.2,214.16,4.66940605]
[1757333268106,20.68,214.2,214.19,26.0]
[1757333268414,20.68,214.2,214.19,62.76]
[1757333268617,20.68,214.2,214.17,26.0]
[1757333268811,20.0,214.2,214.19,36.76]
[1757333270126,20.68,214.2,214.18,36.76]
[1757333271607,20.74,214.2,214.18,36.76]
[1757333272105,0.68,214.19,214.17,26.0]
[1757333272306,0.68,214.19,214.18,36.76]
[1757333272513,20.06,214.2,214.18,36.76]
[1757333272720,20.0,214.15,214.11,4.67049647]
[1757333272941,20.0,214.15,214.12,36.76]
[1757333273707,20.0,214.15,214.14,26.0]
[1757333273912,20.0,214.15,214.14,62.76]
[1757333274624,20.0,214.15,214.14,36.76]
[1757333275423,20.0,214.15,214.14,26.0]
[1757333275621,20.0,214.15,214.14,62.76]
[1757333275838,20.68,214.15,214.14,26.0]
[1757333276012,34.27559401,214.15,214.09,2.43804715]
[1757333276209,20.0,214.1,214.08,36.79]
[1757333276408,20.68,214.1,214.08,36.79]
[1757333276621,20.0,214.1,214.08,0.03]
[1757333277227,0.68,214.09,214.08,0.03]
[1757333277421,0.68,214.09,214.08,36.79]
[1757333278008,0.68,214.09,214.08,62.79]
[1757333278214,0.68,214.09,214.08,0.03]
[1757333278812,20.0,214.1,214.08,26.03]
[1757333279021,20.0,214.1,214.09,26.0]
[1757333283210,20.68,214.1,214.09,26.0]
[1757333284134,20.68,214.1,214.08,36.79]
[1757333284709,20.0,214.1,214.08,36.79]
[1757333284922,20.0,214.12,214.11,26.0]
[1757333285127,20.0,214.12,214.11,62.76]
[1757333285508,20.0,214.12,214.11,26.0]
[1757333285713,100.27,214.15,214.14,26.0]
[1757333286425,20.0,214.12,214.11,36.76]
[1757333286725,20.0,214.1,214.09,26.0]
[1757333286932,20.0,214.1,214.09,62.76]
[1757333288118,20.0,214.1,214.09,62.74]
[1757333288915,25.34071461,214.1,214.08,0.03]
[1757333289119,24.67071461,214.1,214.08,0.03]
[1757333289419,25.34071461,214.1,214.08,0.03]
[1757333289832,20.67,214.1,214.08,0.03]
[1757333290035,20.0,214.1,214.09,36.74]
[1757333291218,20.0,214.1,214.09,36.77]
[1757333291430,20.0,214.1,214.09,26.03]
[1757333291631,20.0,214.1,214.09,62.77]
[1757333292112,20.0,214.12,214.11,26.0]
[1757333292330,20.0,214.12,214.11,62.74]
[1757333293135,20.0,214.12,214.11,67.41049647]
[1757333293323,20.0,214.13,214.11,68.12049647]
[1757333293925,20.0,214.13,214.11,26.0]
[1757333294127,20.67,214.13,214.12,36.74]
[1757333295142,20.67,214.13,214.11,36.74]
[1757333296330,20.67,214.13,214.09,4.70091804]
[1757333296539,20.67,214.13,214.12,26.0]
[1757333296835,20.0,214.13,214.12,26.0]
[1757333297015,20.0,214.13,214.12,62.74]
[1757333298448,20.0,214.13,214.12,36.74]
[1757333299242,20.0,214.13,214.09,30.70091804]
[1757333299442,25.34008885,214.13,214.1,36.74]
[1757333299620,20.0,214.1,214.09,26.03]
[1757333299827,20.67,214.1,214.09,26.03]
[1757333300940,20.0,214.12,214.11,26.0]
[1757333301147,20.0,214.12,214.11,62.74]
[1757333301942,20.67,214.12,214.11,62.74]
[1757333302243,20.0,214.1,214.09,36.77]
[1757333302447,20.67,214.1,214.09,36.77]
[1757333303628,25.34071461,214.1,214.09,36.77]
[1757333303830,20.67,214.1,214.09,36.77]
[1757333304541,25.34071461,214.1,214.09,0.03]
[1757333304851,38.93630862,214.1,214.09,0.03]
[1757333305636,41.42237378,214.1,214.09,0.03]
[1757333308443,42.82762351,214.1,214.09,0.03]
[1757333309745,79.57,214.09,214.01,30.67267509]
[1757333309949,20.0,214.03,214.01,30.67267509]
[1757333310147,20.0,214.03,214.01,26.0]
[1757333312441,20.0,214.03,214.01,26.71]
[1757333312645,20.0,214.03,214.01,30.67267313]
[1757333312846,20.0,214.03,214.02,26.71]
[1757333313559,20.0,214.03,214.02,26.0]
[1757333314761,20.0,214.03,214.02,36.74]
[1757333315764,99.57,214.05,214.04,26.0]
[1757333315936,99.57,214.05,214.04,26.7]
[1757333316137,20.0,214.07,214.04,26.7]
[1757333316336,20.0,214.07,214.05,63.44]
[1757333316551,20.0,214.07,214.05,26.0]
[1757333316754,0.72,214.06,214.05,26.0]
[1757333317166,0.72,214.06,213.99,4.67291431]
[1757333317167,20.0,214.03,214.02,62.74]
[1757333317341,20.0,214.03,214.02,26.0]
[1757333317546,20.72,214.03,214.02,26.0]
[1757333317778,20.0,214.03,214.02,26.0]
[1757333318837,20.72,214.03,214.02,26.0]
[1757333319753,20.0,214.03,214.02,26.0]
[1757333322865,20.0,214.03,214.02,31.37246051]
[1757333323268,20.0,214.03,214.02,67.41246051]
[1757333323570,20.72,214.03,214.02,62.74]
[1757333323871,20.0,214.03,214.02,62.74]
[1757333326354,20.0,214.03,214.02,42.11246051]
[1757333327244,99.57,214.07,214.05,26.0]
[1757333327448,100.29,214.07,214.06,26.0]
[1757333329054,20.0,214.07,214.06,67.4115874]
[1757333329279,20.72,214.07,214.03,26.0]
[1757333329448,20.0,214.07,214.05,26.0]
[1757333329776,20.0,214.07,214.06,26.0]
[1757333329986,20.72,214.07,214.06,26.0]
[1757333330153,20.0,214.05,214.03,36.74]
[1757333330354,20.72,214.05,214.03,36.74]
[1757333332559,20.72,214.05,214.03,62.74]
[1757333333080,20.0,214.05,214.03,62.74]
[1757333333582,20.0,214.05,214.03,63.44]
[1757333333775,20.0,214.05,214.04,0.7]
[1757333334166,20.0,214.05,214.03,62.74]
[1757333334679,20.0,214.07,214.04,4.67202392]
[1757333334876,20.0,214.05,214.04,4.67202392]
[1757333335661,79.57,214.08,214.04,5.37202392]
[1757333335872,20.06,214.09,214.08,26.0]
[1757333336063,20.06,214.09,214.08,62.72]
[1757333336268,0.06,214.09,214.08,62.72]
[1757333336470,20.06,214.09,214.08,67.39115097]
[1757333336664,0.06,214.09,214.08,67.39115097]
[1757333337367,0.06,214.09,214.08,42.09115097]
[1757333342375,0.06,214.09,214.08,5.37115097]
[1757333342776,0.06,214.09,214.08,67.39115097]
[1757333342977,0.06,214.09,214.08,31.37115097]
[1757333343394,0.06,214.09,214.08,68.09115097]
[1757333344383,0.06,214.09,214.08,30.67115097]
[1757333344589,20.78,214.09,214.06,36.72]
[1757333344786,0.72,214.08,214.06,36.72]
[1757333345190,20.06,214.09,214.08,26.0]
[1757333345773,20.78,214.09,214.06,26.0]
[1757333345978,0.72,214.08,214.07,36.72]
[1757333346483,20.06,214.09,214.07,36.72]
[1757333346677,0.06,214.09,214.07,37.4]
[1757333347688,0.06,214.09,214.08,5.35115097]
[1757333348477,0.06,214.09,214.08,42.07115097]
[1757333348676,0.06,214.09,214.08,68.07115097]
[1757333348987,0.06,214.14,214.08,103.57189833]
[1757333349187,0.06,214.14,214.11,26.0]
[1757333349571,0.78,214.14,214.12,36.7]
[1757333349770,0.78,214.14,214.12,41.37014905]
[1757333349972,0.78,214.14,214.13,26.0]
[1757333350174,20.78,214.14,214.13,62.7]
[1757333350698,0.06,214.14,214.13,62.7]
[1757333351992,0.06,214.14,214.13,67.37006024]
[1757333354780,0.78,214.14,214.13,26.0]
[1757333355096,0.78,214.14,214.13,62.7]
[1757333355299,0.78,214.14,214.13,67.37006024]
[1757333356300,0.06,214.14,214.13,67.37006024]
[1757333357386,0.06,214.14,214.13,30.67006024]
[1757333357591,0.06,214.14,214.13,67.37006024]
[1757333357787,0.78,214.14,214.13,62.7]
[1757333357989,0.78,214.14,214.13,26.0]
[1757333359100,0.78,214.14,214.13,62.7]
[1757333359280,0.78,214.14,214.13,26.0]
[1757333359478,0.78,214.14,214.13,67.37006024]
[1757333359804,0.06,214.14,214.13,42.05006024]
[1757333360583,0.06,214.14,214.13,30.67006024]
[1757333360795,0.06,214.14,214.13,67.37006024]
[1757333362192,0.06,214.14,214.13,30.67006024]
[1757333362498,0.78,214.14,214.13,67.37006024]
[1757333362889,0.06,214.14,214.13,67.37006024]
[1757333363889,0.06,214.14,214.13,68.05006024]
[1757333364089,0.06,214.14,214.13,67.37006024]
[1757333364284,0.06,214.14,214.13,30.67006024]
[1757333364487,0.78,214.14,214.13,67.35006024]
[1757333364700,0.06,214.14,214.13,67.35006024]
[1757333364895,0.78,214.14,214.12,4.67025911]
[1757333365203,20.06,214.14,214.13,62.68]
[1757333365580,20.78,214.14,214.13,36.68]
[1757333365899,20.78,214.14,214.13,62.68]
[1757333368105,20.78,214.14,214.13,26.0]
[1757333369302,20.0,214.11,214.09,0.03]
[1757333369518,20.0,214.11,214.1,62.68]
[1757333369704,20.72,214.11,214.1,26.0]
[1757333370013,20.72,214.11,214.09,36.71]
[1757333370186,0.72,214.1,214.09,0.03]
[1757333372403,5.39071461,214.1,214.09,0.03]
[1757333372598,21.47573359,214.1,214.09,0.03]
[1757333375499,18.98630862,214.1,214.09,0.03]
[1757333376100,5.39071461,214.1,214.09,0.03]
[1757333376302,18.98630862,214.1,214.09,0.03]
[1757333382307,21.47573359,214.1,214.09,0.03]
[1757333383698,18.98630862,214.1,214.09,0.03]
[1757333383901,21.47573359,214.1,214.09,0.03]
[1757333384211,18.98630862,214.1,214.09,0.03]
[1757333384811,18.26630862,214.1,214.09,0.03]
[1757333384990,20.0,214.11,214.09,0.03]
[1757333385193,24.67057204,214.11,214.09,0.03]
[1757333385507,0.67,214.1,214.09,0.03]
[1757333387404,5.34071461,214.1,214.09,0.03]
[1757333390415,7.83013958,214.1,214.09,0.03]
[1757333392816,21.42573359,214.1,214.09,0.03]
[1757333393615,58.10573359,214.1,214.09,0.03]
[1757333404235,59.97589747,214.1,214.09,0.03]
[1757333404637,23.29589747,214.1,214.09,0.03]
[1757333404836,59.95589747,214.1,214.09,0.03]
[1757333405332,23.29589747,214.1,214.09,0.03]
[1757333405511,59.95589747,214.1,214.09,0.03]
[1757333405712,23.29589747,214.1,214.09,0.03]
[1757333405912,59.95589747,214.1,214.09,0.03]
[1757333406917,23.29589747,214.1,214.09,0.03]
[1757333407440,2.48942497,214.07,214.06,0.03]
[1757333407933,59.14942497,214.07,214.06,0.03]
[1757333408236,22.48942497,214.07,214.06,0.03]
[1757333408413,63.82079414,214.07,214.06,0.03]
[1757333411339,64.51079414,214.07,214.06,0.03]
[1757333411636,78.10638815,214.07,214.06,0.03]
[1757333411814,79.97672692,214.07,214.06,0.03]
[1757333412916,82.47162757,214.07,214.06,0.03]
[1757333413119,89.948116,214.07,214.06,0.03]
[1757333413327,77.48730195,214.07,214.06,0.03]
[1757333413526,36.08775682,214.05,214.04,1e-08]
[1757333413732,72.74775682,214.05,214.04,1e-08]
[1757333413924,73.43775682,214.05,214.04,1e-08]
[1757333414329,33.59559401,214.05,214.04,1e-08]
[1757333414516,33.59559401,214.05,214.04,0.69000001]
[1757333415241,38.26739966,214.05,214.04,1e-08]
[1757333415948,20.0,214.05,214.04,0.69000001]
[1757333417513,38.26739966,214.05,214.04,1e-08]
[1757333418025,41.44956247,214.05,214.04,1e-08]
[1757333418212,78.10956247,214.05,214.04,1e-08]
[1757333418613,38.26739966,214.05,214.04,1e-08]
[1757333420027,40.75956247,214.05,214.04,1e-08]
[1757333420432,41.44956247,214.05,214.04,1e-08]
[1757333420625,78.10956247,214.05,214.04,1e-08]
[1757333421441,40.75956247,214.05,214.04,1e-08]
[1757333421639,38.26739966,214.05,214.04,1e-08]
[1757333422123,20.0,214.05,214.04,1e-08]
[1757333422322,20.0,214.05,214.04,0.69000001]
[1757333422529,20.0,214.05,214.04,3.18216282]
[1757333423046,20.0,214.05,214.04,0.69000001]
[1757333424348,20.0,214.05,214.04,3.18216282]
[1757333427045,20.06,214.05,214.04,3.18216282]
[1757333429341,20.06,214.05,214.04,28.49216282]
[1757333429643,20.06,214.05,214.04,29.18216282]
[1757333430425,20.06,214.05,214.04,30.58086093]
[1757333432843,20.06,214.05,214.04,4.58086093]
[1757333433046,20.06,214.05,214.04,35.25288485]
[1757333433244,0.06,214.05,214.04,35.25288485]
[1757333435241,20.06,214.05,214.04,35.25288485]
[1757333436547,20.06,214.05,214.04,71.89288485]
[1757333437453,0.06,214.05,214.04,71.89288485]
[1757333439451,0.06,214.05,214.04,45.89288485]
[1757333440956,0.06,214.05,214.04,49.78374577]
[1757333442038,0.06,214.05,214.04,5.36202393]
[1757333442354,0.06,214.05,214.04,34.56288485]
[1757333442562,0.06,214.05,214.04,71.90288485]
[1757333442938,0.06,214.05,214.04,75.79374577]
[1757333444435,0.06,214.08,214.04,87.94100796]
[1757333444634,0.06,214.08,214.07,29.89086092]
[1757333445162,0.06,214.08,214.07,66.51086092]
[1757333446150,0.06,214.08,214.07,71.18223009]
[1757333446354,0.06,214.08,214.07,34.56223009]
[1757333446535,0.06,214.08,214.07,67.29136917]
[1757333446848,0.06,214.08,214.07,71.16223009]
[1757333447534,0.06,214.08,214.07,30.67136917]
[1757333447735,33.59559401,214.05,214.04,1e-08]
[1757333447980,37.48645493,214.05,214.04,1e-08]
[1757333448258,42.74826058,214.05,214.04,1e-08]
[1757333449858,38.85739966,214.05,214.04,1e-08]
[1757333450040,42.74826058,214.05,214.04,1e-08]
[1757333451142,20.0,214.0,213.99,0.03]
[1757333451342,20.0,213.86,213.85,46.23007068]
[1757333452343,20.0,213.86,213.85,46.95007068]
[1757333452653,20.0,213.86,213.85,76.8409316]
[1757333453658,20.0,213.86,213.85,50.8409316]
[1757333453836,20.0,213.88,213.87,26.0]
[1757333454038,20.0,213.88,213.87,30.61086092]
[1757333454237,20.0,213.86,213.85,46.23007068]
[1757333455740,24.67595623,213.86,213.85,46.23007068]
[1757333458764,28.56681715,213.86,213.82,26.0]
[1757333458951,24.67595623,213.86,213.82,26.0]
[1757333459149,24.67595623,213.86,213.82,26.72]
[1757333459150,20.0,213.83,213.82,26.72]
[1757333461007,20.0,213.86,213.85,26.0]
[1757333461271,20.0,213.88,213.85,68.59086092]
[1757333461472,20.0,213.88,213.87,3.89086092]
[1757333461844,20.0,213.88,213.85,67.87086092]
[1757333462043,20.0,213.86,213.85,4.61086092]
[1757333462345,20.0,213.86,213.85,42.59086092]
[1757333462550,20.0,213.84,213.8,0.72]
[1757333462753,20.0,213.84,213.83,26.0]
[1757333462980,20.0,213.84,213.81,37.96]
[1757333462981,20.0,213.82,213.81,37.96]
[1757333463275,20.0,213.86,213.84,26.0]
[1757333463449,20.0,213.86,213.85,41.85086092]
[1757333463648,20.0,213.86,213.85,42.57086092]
[1757333463846,20.0,213.86,213.85,42.60086092]
[1757333465071,20.0,213.86,213.85,47.2770358]
[1757333465259,20.0,213.88,213.87,26.0]
[1757333465772,20.0,213.88,213.87,30.57086092]
[1757333466269,20.0,213.88,213.87,68.49086092]
[1757333468644,20.0,213.88,213.87,73.16659851]
[1757333469478,20.0,213.88,213.87,68.49086092]
[1757333470175,20.0,213.91,213.87,73.16659851]
[1757333470367,20.0,213.91,213.89,3.89086092]
[1757333470675,20.0,213.91,213.89,41.75086092]
[1757333470878,20.0,213.89,213.88,63.84]
[1757333471782,20.0,213.89,213.88,67.71086092]
[1757333472461,20.0,213.89,213.88,68.39086092]
[1757333472656,20.0,213.89,213.88,26.0]
[1757333472862,20.0,213.89,213.88,42.35086092]
[1757333476079,20.0,213.89,213.88,47.0263799]
[1757333476276,20.0,213.89,213.88,42.35086092]
[1757333476763,20.0,213.89,213.88,38.46]
[1757333476968,20.0,213.89,213.88,42.35086092]
[1757333477677,20.0,213.89,213.88,47.0263799]
[1757333477889,20.0,213.91,213.9,26.0]
[1757333478186,20.0,213.91,213.9,68.29086092]
[1757333478376,20.0,213.93,213.9,68.29086092]
[1757333478582,20.0,213.93,213.92,3.89086092]
[1757333478871,20.0,213.93,213.92,41.59086092]
[1757333479072,20.0,213.95,213.94,26.0]
[1757333479265,20.0,213.95,213.94,68.27086092]
[1757333480177,20.0,213.95,213.94,63.7]
[1757333480481,20.0,213.95,213.94,67.59086092]
[1757333481080,20.0,213.95,213.94,63.7]
[1757333481257,20.0,213.95,213.94,67.59086092]
[1757333481683,20.0,213.95,213.94,68.27086092]
[1757333482380,20.0,213.95,213.94,72.94506864]
[1757333483764,20.0,213.97,213.94,72.94506864]
[1757333483972,20.0,213.97,213.96,3.89086092]
[1757333484278,20.0,213.97,213.96,41.51086092]
[1757333484479,20.06,213.99,213.98,26.0]
[1757333484680,20.06,213.99,213.98,67.49086092]
[1757333484868,20.06,213.99,213.98,68.17086092]
[1757333485274,0.06,213.99,213.98,68.17086092]
[1757333485790,0.06,213.99,213.98,72.84419487]
[1757333487267,0.06,213.99,213.98,68.95333395]
[1757333487468,0.06,213.99,213.98,72.84419487]
[1757333489975,0.06,214.02,213.98,84.52752976]
[1757333490181,0.06,214.02,214.01,3.89086092]
[1757333490394,0.06,214.08,214.04,26.0]
[1757333490573,20.06,214.08,214.07,2.48870971]
[1757333490776,20.06,214.08,214.07,40.68870971]
[1757333492280,20.06,214.08,214.07,45.36007888]
[1757333492792,0.06,214.08,214.07,45.36007888]
[1757333492975,20.06,214.08,214.07,45.36007888]